bitfinex/quotes_BTCUSD_20240819
["timestamp","ask_amount","ask_price","bid_price","bid_amount"]
[1724028069662,1.04312167,58619.0,58618.0,0.00902]
[1724028070017,1.04112167,58619.0,58618.0,0.00902]
[1724028070387,1.04312167,58619.0,58618.0,0.00902]
[1724028071069,1.04512167,58619.0,58618.0,0.00902]
[1724028071469,1.02836308,58619.0,58618.0,0.00902]
[1724028071695,1.04512549,58619.0,58618.0,0.00902]
[1724028072026,1.04512549,58619.0,58618.0,6.3e-07]
[1724028073887,1.04512549,58619.0,58618.0,0.05000063]
[1724028076473,1.28395549,58619.0,58618.0,0.05000063]
[1724028076747,1.41878849,58619.0,58618.0,0.05000063]
[1724028077680,1.47661771,58619.0,58618.0,0.05000063]
[1724028077882,1.64617225,58619.0,58618.0,0.05000063]
[1724028078086,1.66017225,58619.0,58618.0,0.05000063]
[1724028078293,1.76367225,58619.0,58618.0,0.05000063]
[1724028078497,1.70384303,58619.0,58618.0,0.05000063]
[1724028078699,1.52728849,58619.0,58618.0,0.05000063]
[1724028078900,1.48361846,58619.0,58618.0,0.05000063]
[1724028079104,1.42378849,58619.0,58618.0,0.05000063]
[1724028079312,1.41814797,58619.0,58618.0,0.05000063]
[1724028079515,1.43378873,58619.0,58618.0,0.05000063]
[1724028079743,1.39738556,58619.0,58618.0,0.05000063]
[1724028079919,1.40978967,58619.0,58618.0,0.05000063]
[1724028080060,1.43778967,58619.0,58618.0,0.05000063]
[1724028080556,1.43878967,58619.0,58618.0,0.05000063]
[1724028080758,1.43778967,58619.0,58618.0,0.05000063]
[1724028080963,1.19331886,58619.0,58618.0,0.05000063]
[1724028081175,1.19331886,58619.0,58618.0,0.32660063]
[1724028081176,0.69829958,58619.0,58618.0,0.32660063]
[1724028081393,0.45946958,58619.0,58618.0,0.32660063]
[1724028081600,0.23322158,58619.0,58618.0,0.32660063]
[1724028082008,0.59146658,58619.0,58618.0,0.32660063]
[1724028082124,0.45945845,58619.0,58618.0,0.32660063]
[1724028082317,0.44545845,58619.0,58618.0,0.32660063]
[1724028082536,0.45145845,58619.0,58618.0,0.32660063]
[1724028082937,0.43745845,58619.0,58618.0,0.32660063]
[1724028083153,0.44345791,58619.0,58618.0,0.32660063]
[1724028083377,0.32404291,58619.0,58618.0,0.32660063]
[1724028083815,0.32404291,58619.0,58618.0,0.44601763]
[1724028084031,0.20595802,58619.0,58618.0,0.44601763]
[1724028084698,0.20595802,58619.0,58618.0,0.32660063]
[1724028084904,0.21691041,58619.0,58618.0,0.32660063]
[1724028085115,0.20014711,58619.0,58618.0,0.32660063]
[1724028085308,0.18919472,58619.0,58618.0,0.32660063]
[1724028085522,0.18319472,58619.0,58618.0,0.32660063]
[1724028085721,0.31936894,58619.0,58618.0,0.32660063]
[1724028085924,0.56515133,58619.0,58618.0,0.32660063]
[1724028086213,0.56715133,58619.0,58618.0,0.32660063]
[1724028086613,0.80598133,58619.0,58618.0,0.32660063]
[1724028091037,0.80598197,58619.0,58618.0,0.32660063]
[1724028092423,0.80557142,58619.0,58618.0,0.32660063]
[1724028093975,0.56674142,58619.0,58618.0,0.32660063]
[1724028094387,0.20849642,58619.0,58618.0,0.32660063]
[1724028094558,0.20849642,58619.0,58618.0,0.44601763]
[1724028094769,0.20849642,58619.0,58618.0,0.62991763]
[1724028094963,0.17514399,58619.0,58618.0,0.62991763]
[1724028095145,0.19754238,58619.0,58618.0,0.62991763]
[1724028095344,0.20851241,58619.0,58618.0,0.51050063]
[1724028096377,0.03736842,58619.0,58618.0,1.10758563]
[1724028096577,0.03819042,58619.0,58618.0,2.94641963]
[1724028096778,0.02722039,58619.0,58618.0,2.94641963]
[1724028097163,0.02722039,58619.0,58618.0,2.95688124]
[1724028097582,0.02522039,58619.0,58618.0,2.95688124]
[1724028097791,0.02322039,58619.0,58618.0,2.95688124]
[1724028097992,0.02322039,58619.0,58618.0,2.95788124]
[1724028099016,0.01758007,58619.0,58618.0,2.70858563]
[1724028099187,0.02321931,58619.0,58618.0,1.20858563]
[1724028099673,0.02321931,58619.0,58618.0,0.73091763]
[1724028099674,0.19477385,58619.0,58618.0,0.73091763]
[1724028099876,0.19477385,58619.0,58618.0,0.96975163]
[1724028100081,0.20941762,58619.0,58618.0,0.96975163]
[1724028100286,0.19477385,58619.0,58618.0,0.96975163]
[1724028100720,0.02321931,58619.0,58618.0,0.96975163]
[1724028101138,0.02321931,58619.0,58618.0,1.20858563]
[1724028102171,0.05107242,58633.0,58624.0,0.001]
[1724028102400,0.119399,58627.0,58624.0,0.001]
[1724028102605,0.19395184,58626.0,58624.0,0.001]
[1724028102774,0.00563923,58625.0,58624.0,0.001]
[1724028102980,0.17719377,58625.0,58624.0,0.001]
[1724028103187,0.19185621,58625.0,58623.0,0.005]
[1724028103403,0.17155454,58624.0,58623.0,0.124407]
[1724028103580,0.17719379,58624.0,58623.0,0.124407]
[1724028103784,0.1918541,58624.0,58623.0,0.124407]
[1724028104055,0.17719379,58624.0,58623.0,0.124407]
[1724028105001,0.17919379,58624.0,58623.0,0.124407]
[1724028106188,0.18119379,58624.0,58623.0,0.124407]
[1724028106590,0.18119379,58624.0,58618.0,0.84933463]
[1724028106591,0.18119379,58624.0,58622.0,0.003]
[1724028106793,0.00563925,58623.0,58622.0,0.003]
[1724028107059,0.18627311,58623.0,58622.0,0.003]
[1724028107260,0.17719379,58623.0,58622.0,0.122409]
[1724028107436,0.17719379,58623.0,58622.0,0.003]
[1724028107868,0.19191236,58623.0,58622.0,0.003]
[1724028108063,0.19191236,58623.0,58618.0,0.61050063]
[1724028108064,0.31131936,58623.0,58618.0,0.61050063]
[1724028108341,0.17719379,58622.0,58618.0,0.61050063]
[1724028108460,0.119415,58619.0,58618.0,0.32660063]
[1724028108664,0.30764933,58619.0,58618.0,0.32660063]
[1724028109121,0.18823433,58619.0,58618.0,0.32660063]
[1724028109418,0.30764933,58619.0,58618.0,0.05000063]
[1724028109633,0.18823433,58619.0,58618.0,0.05000063]
[1724028110980,0.18823433,58619.0,58618.0,0.05100063]
[1724028111181,0.18259508,58619.0,58618.0,0.05100063]
[1724028111387,0.18823466,58619.0,58618.0,0.05100063]
[1724028111779,0.30764966,58619.0,58618.0,0.05100063]
[1724028111983,0.30764966,58619.0,58618.0,0.05000063]
[1724028112185,0.30764966,58619.0,58618.0,0.05100063]
[1724028112630,0.18823466,58619.0,58618.0,0.05100063]
[1724028113155,0.18259508,58619.0,58618.0,0.05100063]
[1724028113388,0.18823468,58619.0,58618.0,0.05100063]
[1724028113589,0.30764968,58619.0,58618.0,0.05100063]
[1724028113791,0.18823468,58619.0,58618.0,0.05100063]
[1724028114075,0.19189047,58619.0,58618.0,0.05000063]
[1724028114276,0.19189047,58619.0,58618.0,0.05100063]
[1724028115902,0.55013547,58619.0,58618.0,0.05100063]
[1724028116102,0.55013545,58619.0,58618.0,0.05100063]
[1724028116660,0.54645234,58619.0,58618.0,0.05100063]
[1724028116842,0.78528235,58619.0,58618.0,0.05100063]
[1724028116975,0.78528235,58619.0,58618.0,0.05000063]
[1724028117176,0.89209703,58619.0,58618.0,0.05000063]
[1724028118800,0.89509703,58619.0,58618.0,0.05000063]
[1724028119003,0.89862088,58619.0,58618.0,0.05000063]
[1724028120302,0.41796088,58619.0,58618.0,0.05000063]
[1724028120506,0.41796088,58619.0,58618.0,0.30780063]
[1724028120708,0.42296088,58619.0,58618.0,0.30880063]
[1724028120894,0.42096088,58619.0,58618.0,0.30880063]
[1724028121101,0.41796088,58619.0,58618.0,0.30880063]
[1724028121238,0.42096088,58619.0,58618.0,0.30780063]
[1724028121442,0.41996088,58619.0,58618.0,0.30780063]
[1724028121875,0.42196088,58619.0,58618.0,0.30780063]
[1724028122303,0.42196103,58619.0,58618.0,0.30780063]
[1724028125033,0.31014635,58619.0,58618.0,0.30780063]
[1724028127822,0.54897635,58619.0,58618.0,0.05000063]
[1724028128454,0.6000975,58619.0,58618.0,0.05000063]
[1724028129320,0.70691245,58619.0,58618.0,0.05000063]
[1724028129527,0.60019142,58619.0,58618.0,0.05000063]
[1724028130808,1.07785142,58619.0,58618.0,0.05000063]
[1724028130995,1.15236391,58619.0,58618.0,0.05000063]
[1724028131196,1.25460622,58619.0,58618.0,0.05000063]
[1724028131534,1.878587,58619.0,58618.0,0.05000063]
[1724028131733,2.017487,58619.0,58618.0,0.05000063]
[1724028131943,2.08044393,58619.0,58618.0,0.05000063]
[1724028132163,2.10572991,58619.0,58618.0,0.05000063]
[1724028132985,2.25731727,58619.0,58618.0,0.05000063]
[1724028133184,2.37091488,58619.0,58618.0,0.05000063]
[1724028133427,2.21532752,58619.0,58618.0,0.05000063]
[1724028133632,2.05277298,58619.0,58618.0,0.05000063]
[1724028133888,2.03877298,58619.0,58618.0,0.05000063]
[1724028134003,2.04713324,58619.0,58618.0,0.05000063]
[1724028134212,0.9439142,58619.0,58618.0,0.05000063]
[1724028134418,0.9299142,58619.0,58618.0,0.05000063]
[1724028134816,1.03222865,58619.0,58618.0,0.05000063]
[1724028135068,0.9299142,58619.0,58618.0,0.05000063]
[1724028135466,0.9439142,58619.0,58618.0,0.05000063]
[1724028135682,1.28505075,58619.0,58618.0,0.05000063]
[1724028135924,1.47254697,58619.0,58618.0,0.05000063]
[1724028136096,1.3446442,58619.0,58618.0,0.05000063]
[1724028136298,1.6801811,58619.0,58618.0,0.05000063]
[1724028136919,1.5328442,58619.0,58618.0,0.05000063]
[1724028137708,1.52720324,58619.0,58618.0,0.05000063]
[1724028137902,1.53284427,58619.0,58618.0,0.05000063]
[1724028138307,1.52720324,58619.0,58618.0,0.05000063]
[1724028138493,1.53284428,58619.0,58618.0,0.05000063]
[1724028139815,1.5075583,58619.0,58618.0,0.05000063]
[1724028140013,1.53363952,58619.0,58618.0,0.05000063]
[1724028140213,1.70347951,58619.0,58618.0,0.05000063]
[1724028140823,1.99527951,58619.0,58618.0,0.05000063]
[1724028141410,2.12305347,58619.0,58618.0,0.05000063]
[1724028142204,1.82543952,58619.0,58618.0,0.05000063]
[1724028143165,2.06426952,58619.0,58618.0,0.05000063]
[1724028143574,2.06426952,58619.0,58618.0,6.3e-07]
[1724028143575,3.58259952,58619.0,58618.0,6.3e-07]
[1724028143783,3.44376952,58619.0,58618.0,6.3e-07]
[1724028143958,3.61532406,58619.0,58618.0,6.3e-07]
[1724028144206,3.85415406,58619.0,58618.0,6.3e-07]
[1724028144411,4.0074531,58619.0,58618.0,6.3e-07]
[1724028144617,3.85415406,58619.0,58618.0,6.3e-07]
[1724028144818,3.84015406,58619.0,58618.0,6.3e-07]
[1724028145111,1.074807,58615.0,58614.0,0.00902]
[1724028145342,1.80800445,58615.0,58614.0,0.00902]
[1724028145547,2.32063609,58615.0,58614.0,0.00902]
[1724028145746,2.16736554,58615.0,58614.0,0.00902]
[1724028146741,2.32049397,58615.0,58614.0,0.00902]
[1724028146954,2.45771553,58615.0,58614.0,0.00902]
[1724028147172,2.3045871,58615.0,58614.0,0.00902]
[1724028147374,2.01185786,58615.0,58614.0,0.00902]
[1724028147583,1.49693464,58615.0,58614.0,0.00902]
[1724028147778,1.35803464,58615.0,58614.0,0.00902]
[1724028147991,1.27590262,58615.0,58614.0,0.00902]
[1724028148218,1.18783464,58615.0,58614.0,0.00902]
[1724028148425,1.19073143,58615.0,58614.0,0.00902]
[1724028148638,1.36228597,58615.0,58614.0,0.00902]
[1724028148841,2.26394595,58615.0,58614.0,0.00902]
[1724028149035,1.93203197,58615.0,58614.0,0.00902]
[1724028149268,2.03203197,58615.0,58614.0,0.00902]
[1724028150536,1.60763143,58615.0,58614.0,0.00902]
[1724028150763,1.62163143,58615.0,58614.0,0.00902]
[1724028150967,1.46775342,58615.0,58614.0,0.00902]
[1724028151187,1.28475342,58615.0,58614.0,0.00902]
[1724028151390,1.26175342,58615.0,58614.0,0.00902]
[1724028151605,1.05493277,58615.0,58614.0,0.00902]
[1724028151803,1.05427905,58615.0,58614.0,0.00902]
[1724028152113,1.04027905,58615.0,58614.0,0.00902]
[1724028152828,1.02627905,58615.0,58614.0,0.00902]
[1724028153001,1.04927905,58615.0,58614.0,0.00902]
[1724028153210,0.81879201,58615.0,58614.0,0.29392]
[1724028153411,0.80143319,58615.0,58614.0,0.29392]
[1724028153611,0.78743319,58615.0,58614.0,0.29392]
[1724028154039,0.80043319,58615.0,58614.0,0.29392]
[1724028154247,0.81443319,58615.0,58614.0,0.29392]
[1724028154484,0.80043319,58615.0,58614.0,0.29392]
[1724028154720,0.80143319,58615.0,58614.0,0.29392]
[1724028155166,0.78743319,58615.0,58614.0,0.29392]
[1724028155391,0.79943319,58615.0,58614.0,0.29392]
[1724028156114,0.81143319,58615.0,58614.0,0.29392]
[1724028156303,1.05027919,58615.0,58614.0,0.00902]
[1724028156623,1.1801193,58615.0,58614.0,0.00902]
[1724028156833,1.49652325,58615.0,58614.0,0.00902]
[1724028157816,1.50688544,58615.0,58614.0,0.00902]
[1724028158024,1.39448876,58615.0,58614.0,0.00902]
[1724028158179,1.5660433,58615.0,58614.0,0.00902]
[1724028158381,1.31312325,58615.0,58614.0,0.00902]
[1724028158831,1.23115685,58615.0,58614.0,0.00902]
[1724028159045,1.1801193,58615.0,58614.0,0.00902]
[1724028159467,1.25749763,58615.0,58614.0,0.00902]
[1724028160403,1.1809413,58615.0,58614.0,0.29062]
[1724028160555,1.01866691,58615.0,58614.0,0.29062]
[1724028160748,0.9420953,58615.0,58614.0,0.29062]
[1724028161014,0.9190953,58615.0,58614.0,0.29062]
[1724028161220,0.91909513,58615.0,58614.0,0.29062]
[1724028161419,0.97014818,58615.0,58614.0,0.29062]
[1724028161703,0.91909513,58615.0,58614.0,0.29062]
[1724028162056,1.04704652,58615.0,58614.0,0.29062]
[1724028162335,1.01899118,58615.0,58614.0,0.29062]
[1724028162521,1.07004996,58615.0,58614.0,0.29062]
[1724028162891,0.99315395,58615.0,58614.0,0.29062]
[1724028163495,0.91909517,58615.0,58614.0,0.29062]
[1724028163895,1.18094117,58615.0,58614.0,0.00902]
[1724028164102,1.36574117,58615.0,58614.0,0.00902]
[1724028164435,1.56909022,58615.0,58614.0,0.00902]
[1724028164621,1.39753568,58615.0,58614.0,0.00902]
[1724028164826,1.34041826,58615.0,58614.0,0.00902]
[1724028165038,1.21273568,58615.0,58614.0,0.00902]
[1724028165244,1.55158168,58615.0,58614.0,0.00902]
[1724028165453,1.55158168,58615.0,58605.0,0.0009031]
[1724028165454,1.12789,58606.0,58605.0,0.0009031]
[1724028165655,1.48853807,58606.0,58605.0,0.0009031]
[1724028165805,1.57757528,58606.0,58605.0,0.0009031]
[1724028166007,1.60057528,58606.0,58605.0,0.0009031]
[1724028166210,1.76063281,58606.0,58605.0,0.0009031]
[1724028166411,1.87183832,58606.0,58605.0,0.0009031]
[1724028166612,2.05663832,58606.0,58605.0,0.0009031]
[1724028167014,2.19629673,58606.0,58605.0,0.0009031]
[1724028167654,1.8514392,58606.0,58605.0,0.0009031]
[1724028168102,1.82590822,58606.0,58605.0,0.0009031]
[1724028168478,1.71178079,58606.0,58605.0,0.0009031]
[1724028168642,1.8514392,58606.0,58605.0,0.0009031]
[1724028168843,1.73578079,58606.0,58605.0,0.0009031]
[1724028169048,2.02935269,58606.0,58605.0,0.0009031]
[1724028169250,2.02299515,58606.0,58605.0,0.0009031]
[1724028169451,1.89533674,58606.0,58605.0,0.0009031]
[1724028169856,1.90733674,58606.0,58605.0,0.0009031]
[1724028170058,1.89533674,58606.0,58605.0,0.0009031]
[1724028170276,1.89385367,58606.0,58605.0,0.0009031]
[1724028171002,2.43333667,58606.0,58605.0,0.0009031]
[1724028171237,2.53333667,58606.0,58605.0,0.0009031]
[1724028171457,2.53533667,58606.0,58605.0,0.0009031]
[1724028172372,2.52133667,58606.0,58605.0,0.0009031]
[1724028172575,2.54933667,58606.0,58605.0,0.0009031]
[1724028172784,2.7025152,58606.0,58605.0,0.0009031]
[1724028173370,2.62160946,58606.0,58605.0,0.0009031]
[1724028173498,2.6272526,58606.0,58605.0,0.0009031]
[1724028174106,2.62160946,58606.0,58605.0,0.0009031]
[1724028174303,2.6272526,58606.0,58605.0,0.0009031]
[1724028174546,2.3354526,58606.0,58605.0,0.0009031]
[1724028174908,2.3214526,58606.0,58605.0,0.0009031]
[1724028175321,2.3492538,58606.0,58605.0,0.0009031]
[1724028175525,2.3352538,58606.0,58605.0,0.0009031]
[1724028175792,2.3212538,58606.0,58605.0,0.0009031]
[1724028175990,2.3352538,58606.0,58605.0,0.0009031]
[1724028176184,2.3492538,58606.0,58605.0,0.0009031]
[1724028176391,2.06189926,58606.0,58605.0,0.0009031]
[1724028176562,1.82301626,58606.0,58605.0,0.0009031]
[1724028176962,1.60121626,58606.0,58605.0,0.0009031]
[1724028177187,1.50949981,58606.0,58605.0,0.0009031]
[1724028177387,1.52349981,58606.0,58605.0,0.0009031]
[1724028178124,1.68105435,58606.0,58605.0,0.0009031]
[1724028178278,1.69505435,58606.0,58605.0,0.0009031]
[1724028178488,1.52349981,58606.0,58605.0,0.0009031]
[1724028178802,1.51849981,58606.0,58605.0,0.0009031]
[1724028179004,1.53681631,58606.0,58605.0,0.0009031]
[1724028179208,1.55081631,58606.0,58605.0,0.0009031]
[1724028179383,1.79690604,58606.0,58605.0,0.0009031]
[1724028179583,2.15786058,58606.0,58605.0,0.0009031]
[1724028179808,2.00474779,58606.0,58605.0,0.0009031]
[1724028180014,2.24363079,58606.0,58605.0,0.0009031]
[1724028180358,2.12054779,58606.0,58605.0,0.0009031]
[1724028180565,1.366881,58600.0,58599.0,1.32e-06]
[1724028180739,1.92860977,58600.0,58599.0,1.32e-06]
[1724028180972,1.808657,58600.0,58599.0,1.32e-06]
[1724028181178,1.8143001,58600.0,58599.0,1.32e-06]
[1724028181379,1.89787824,58600.0,58599.0,1.32e-06]
[1724028181907,1.8143001,58600.0,58599.0,1.32e-06]
[1724028182109,1.81050754,58600.0,58599.0,1.32e-06]
[1724028183135,1.82450754,58600.0,58599.0,1.32e-06]
[1724028183373,1.83850754,58600.0,58599.0,1.32e-06]
[1724028184087,3.11800754,58600.0,58599.0,1.32e-06]
[1724028184321,3.28956208,58600.0,58599.0,1.32e-06]
[1724028184545,3.29997508,58600.0,58599.0,1.32e-06]
[1724028186805,3.29882119,58600.0,58599.0,1.32e-06]
[1724028187926,3.28482119,58600.0,58599.0,1.32e-06]
[1724028188382,3.29882158,58600.0,58599.0,1.32e-06]
[1724028188734,3.28482158,58600.0,58599.0,1.32e-06]
[1724028188987,3.50972858,58600.0,58599.0,1.32e-06]
[1724028189200,3.50158078,58600.0,58599.0,1.32e-06]
[1724028189453,3.52256784,58600.0,58599.0,1.32e-06]
[1724028189711,3.53656784,58600.0,58599.0,1.32e-06]
[1724028190711,3.62461649,58600.0,58599.0,1.32e-06]
[1724028191404,3.62111963,58600.0,58599.0,1.32e-06]
[1724028191876,3.62111963,58600.0,58593.0,3e-07]
[1724028191877,0.358398,58594.0,58593.0,3e-07]
[1724028192092,0.119478,58588.0,58582.0,0.2649031]
[1724028192292,1.66511598,58588.0,58582.0,0.2649031]
[1724028192420,1.97319464,58588.0,58582.0,0.2649031]
[1724028193069,1.80668304,58588.0,58587.0,0.2649031]
[1724028193281,1.82068304,58588.0,58587.0,0.4462031]
[1724028193704,1.948059,58588.0,58587.0,0.4462031]
[1724028193926,2.11961354,58588.0,58587.0,0.4462031]
[1724028194758,2.14417892,58588.0,58587.0,0.4462031]
[1724028194991,2.13017892,58588.0,58587.0,0.4462031]
[1724028195674,2.05985391,58588.0,58587.0,0.23239508]
[1724028195872,3.35335391,58588.0,58587.0,0.23239508]
[1724028196075,3.27131861,58588.0,58587.0,0.23239508]
[1724028196278,3.27696309,58588.0,58587.0,0.23239508]
[1724028197257,3.27696309,58588.0,58587.0,0.23329928]
[1724028198302,2.85398017,58588.0,58587.0,0.23329928]
[1724028198616,2.83098017,58588.0,58587.0,0.23329928]
[1724028198784,2.72414006,58588.0,58587.0,0.23329928]
[1724028199813,2.35534006,58588.0,58587.0,0.23329928]
[1724028200059,0.21275658,58588.0,58587.0,0.59273928]
[1724028200202,0.21840025,58588.0,58587.0,0.35377928]
[1724028200383,0.21840025,58588.0,58587.0,0.35777928]
[1724028200598,0.01840025,58588.0,58587.0,2.33569928]
[1724028200826,0.000822,58602.0,58597.0,0.003]
[1724028201040,0.17719676,58601.0,58600.0,0.4613]
[1724028201248,0.17719676,58601.0,58600.0,0.4603]
[1724028201464,0.30541252,58601.0,58600.0,0.4543]
[1724028201714,0.30541252,58601.0,58600.0,0.4473]
[1724028201917,0.18596152,58601.0,58600.0,0.4473]
[1724028202133,0.19696152,58601.0,58600.0,0.4473]
[1724028202543,0.18596152,58601.0,58600.0,0.4503]
[1724028202748,0.19196152,58601.0,58600.0,0.4503]
[1724028202975,0.02040698,58601.0,58600.0,0.569753]
[1724028203342,0.01476476,58601.0,58600.0,0.80866]
[1724028203515,0.006,58601.0,58600.0,0.80866]
[1724028203827,0.006,58601.0,58600.0,0.81066]
[1724028204172,0.006,58601.0,58600.0,1.049567]
[1724028204381,0.000822,58602.0,58601.0,0.630154]
[1724028204557,0.000822,58602.0,58601.0,1.065357]
[1724028204758,0.000822,58602.0,58601.0,1.064357]
[1724028204955,0.000822,58602.0,58601.0,2.325454]
[1724028205855,0.000822,58602.0,58601.0,2.324454]
[1724028206490,0.003822,58602.0,58601.0,2.324454]
[1724028206827,0.000822,58615.0,58613.0,0.120427]
[1724028207040,0.000822,58615.0,58613.0,0.580727]
[1724028207431,0.000822,58615.0,58613.0,0.819581]
[1724028207631,0.000822,58615.0,58613.0,1.058435]
[1724028207843,0.000822,58615.0,58613.0,1.056435]
[1724028208058,0.000822,58615.0,58613.0,1.295289]
[1724028208468,0.000822,58615.0,58613.0,1.301289]
[1724028208703,0.000822,58615.0,58613.0,1.062435]
[1724028208907,0.000822,58615.0,58613.0,1.059435]
[1724028209121,0.000822,58615.0,58613.0,1.064435]
[1724028209324,0.000822,58615.0,58613.0,1.072435]
[1724028209568,0.000822,58615.0,58613.0,1.064435]
[1724028209915,0.000822,58615.0,58613.0,1.07502675]
[1724028210500,0.000822,58615.0,58613.0,2.57502675]
[1724028210705,0.000822,58615.0,58613.0,2.56702675]
[1724028211145,0.000822,58615.0,58613.0,2.57702675]
[1724028211288,0.000822,58615.0,58613.0,2.58702675]
[1724028212353,0.000822,58615.0,58613.0,2.337581]
[1724028212552,0.000822,58615.0,58613.0,2.576435]
[1724028214531,0.000822,58615.0,58613.0,2.337581]
[1724028216972,0.000822,58615.0,58613.0,2.576435]
[1724028217795,0.000822,58615.0,58613.0,2.337581]
[1724028218529,0.000822,58615.0,58613.0,2.576435]
[1724028218740,0.000822,58615.0,58613.0,2.337581]
[1724028219767,0.000822,58615.0,58613.0,0.4803]
[1724028219948,0.000822,58619.0,58618.0,0.121417]
[1724028220154,0.000822,58619.0,58618.0,1.175985]
[1724028220577,0.000822,58619.0,58618.0,1.58637354]
[1724028221019,0.000822,58623.0,58622.0,0.839863]
[1724028221281,0.000822,58623.0,58622.0,1.681963]
[1724028222526,0.000822,58623.0,58622.0,1.695963]
[1724028222663,0.000822,58623.0,58622.0,1.74371491]
[1724028223075,0.000822,58623.0,58622.0,3.24371491]
[1724028223274,0.000822,58623.0,58622.0,3.195963]
[1724028223476,0.000822,58640.0,58639.0,0.60087]
[1724028223848,0.000822,58640.0,58639.0,1.06777]
[1724028224248,0.000822,58640.0,58639.0,2.66777]
[1724028224794,0.000822,58640.0,58639.0,2.67777]
[1724028225202,0.000822,58640.0,58639.0,2.66777]
[1724028225626,0.000822,58640.0,58639.0,2.68977]
[1724028226305,0.000822,58640.0,58639.0,0.5929]
[1724028226598,0.000822,58640.0,58639.0,0.951022]
[1724028226920,0.000822,58640.0,58639.0,0.712274]
[1724028227355,0.000822,58640.0,58639.0,0.940022]
[1724028227556,0.000822,58640.0,58639.0,1.17877]
[1724028227760,0.000822,58640.0,58639.0,1.18977]
[1724028228356,0.000822,58640.0,58639.0,1.16777]
[1724028228621,0.000822,58640.0,58639.0,1.18977]
[1724028228827,0.000822,58640.0,58639.0,1.428518]
[1724028229045,0.000822,58640.0,58639.0,1.17877]
[1724028229246,0.000822,58640.0,58639.0,1.18977]
[1724028229784,0.000822,58640.0,58639.0,1.428518]
[1724028230805,0.000822,58640.0,58639.0,1.417518]
[1724028231411,0.000822,58640.0,58639.0,1.418518]
[1724028231852,0.000822,58640.0,58639.0,2.930518]
[1724028232229,0.000822,58640.0,58639.0,3.10207254]
[1724028232433,0.51999509,58660.0,58659.0,0.004]
[1724028232766,0.51999509,58660.0,58659.0,0.924]
[1724028232977,0.01769251,58660.0,58659.0,0.924]
[1724028233179,0.00822,58660.0,58659.0,1.162667]
[1724028233345,0.00822,58660.0,58659.0,0.924]
[1724028233553,0.00822,58660.0,58659.0,1.162667]
[1724028234978,0.00822,58660.0,58659.0,1.81155554]
[1724028235607,0.00822,58660.0,58659.0,3.07288854]
[1724028235737,0.00822,58660.0,58659.0,1.401334]
[1724028235955,0.00822,58660.0,58659.0,0.924]
[1724028236161,0.00822,58660.0,58659.0,1.162667]
[1724028236569,0.00822,58660.0,58659.0,0.924]
[1724028237166,0.00822,58660.0,58659.0,0.9183]
[1724028237416,0.00822,58660.0,58659.0,1.395634]
[1724028237825,0.00822,58660.0,58659.0,1.409634]
[1724028238030,0.00822,58660.0,58659.0,1.404634]
[1724028238760,0.000822,58673.0,58672.0,1.305349]
[1724028239007,0.000822,58673.0,58672.0,1.697149]
[1724028239218,0.000822,58673.0,58672.0,1.935763]
[1724028239380,0.00822,58682.0,58673.0,0.839135]
[1724028239581,0.00822,58682.0,58673.0,1.457345]
[1724028239779,0.00822,58682.0,58673.0,2.957345]
[1724028240065,0.00822,58682.0,58677.0,1.122479]
[1724028240685,0.00822,58682.0,58677.0,1.417879]
[1724028241221,0.00822,58682.0,58677.0,1.427879]
[1724028241626,0.00822,58682.0,58677.0,2.927879]
[1724028242125,0.00822,58682.0,58677.0,2.917879]
[1724028242329,0.00822,58682.0,58677.0,2.931879]
[1724028242686,0.00822,58682.0,58677.0,2.917879]
[1724028243009,0.00822,58682.0,58677.0,0.983885]
[1724028243215,0.00822,58682.0,58677.0,1.189285]
[1724028243417,0.00822,58682.0,58677.0,1.427879]
[1724028243650,0.00822,58682.0,58677.0,1.179285]
[1724028244065,0.00822,58682.0,58677.0,1.204285]
[1724028244263,0.00822,58682.0,58677.0,1.193285]
[1724028244609,0.00822,58682.0,58677.0,1.207285]
[1724028245067,0.00822,58682.0,58677.0,1.011885]
[1724028246579,0.00822,58682.0,58677.0,0.997885]
[1724028246796,0.00822,58682.0,58677.0,0.534697]
[1724028247017,0.00822,58682.0,58677.0,0.147297]
[1724028247276,0.119294,58679.0,58677.0,0.028]
[1724028247480,0.246798,58682.0,58677.0,0.028]
[1724028247481,0.246798,58682.0,58677.0,0.014]
[1724028247701,0.2711,58679.0,58677.0,0.007]
[1724028247901,0.00822,58682.0,58677.0,0.126297]
[1724028248061,0.00822,58682.0,58677.0,0.014]
[1724028248250,0.23858,58681.0,58674.0,0.002]
[1724028248455,0.23858,58681.0,58672.0,0.123306]
[1724028248456,0.119298,58677.0,58672.0,0.123306]
[1724028248654,0.17977454,58678.0,58674.0,0.119301]
[1724028248845,0.17977454,58678.0,58675.0,0.119301]
[1724028249352,0.17977454,58678.0,58673.0,0.123303]
[1724028249554,0.366105,58678.0,58677.0,0.002]
[1724028249810,0.77624954,58678.0,58677.0,0.002]
[1724028250121,0.119311,58671.0,58667.0,0.1]
[1724028250252,0.238603,58675.0,58667.0,0.1]
[1724028250253,0.119311,58670.0,58667.0,0.1]
[1724028250686,0.238612,58673.0,58667.0,0.1]
[1724028250890,0.00563464,58672.0,58666.0,0.104]
[1724028251138,0.00563464,58672.0,58662.0,0.238652]
[1724028251139,0.4595,58670.0,58662.0,0.004]
[1724028251318,0.238635,58667.0,58660.0,0.002]
[1724028251717,0.119327,58662.0,58659.0,0.004]
[1724028251877,0.17718918,58666.0,58656.0,0.004]
[1724028251878,0.2615,58661.0,58656.0,0.004]
[1724028252072,0.17155454,58666.0,58659.0,0.002]
[1724028252073,0.2826,58665.0,58659.0,0.002]
[1724028252292,0.198,58670.0,58663.0,0.123325]
[1724028252293,0.00563573,58664.0,58663.0,0.123325]
[1724028252495,0.17155454,58669.0,58668.0,0.002]
[1724028252696,0.1771897,58669.0,58666.0,0.004]
[1724028252892,0.1771897,58669.0,58664.0,0.004]
[1724028252893,0.00563516,58668.0,58664.0,0.004]
[1724028253094,0.00563516,58668.0,58663.0,0.004]
[1724028253260,0.12495216,58668.0,58663.0,0.004]
[1724028253454,0.12495319,58667.0,58663.0,0.004]
[1724028253746,0.00563519,58666.0,58663.0,0.004]
[1724028253968,0.119318,58667.0,58663.0,0.004]
[1724028254174,0.00563523,58666.0,58663.0,0.123325]
[1724028254325,0.00563523,58665.0,58663.0,0.125325]
[1724028254598,0.29086854,58669.0,58663.0,0.123325]
[1724028254813,0.12495016,58668.0,58663.0,0.126325]